[Event "WSCC 50 Open 2017"]
[Site "?"]
[Date "2017.11.16"]
[Round "9"]
[White "Cetinkaya, Vedat Ali"]
[Black "Certek, Pavel"]
[Result "0-1"]
[ECO "A49"]
[WhiteElo "1968"]
[BlackElo "2295"]
[PlyCount "121"]
[EventDate "2017.??.??"]
[EventType "swiss"]
[EventCountry "ITA"]
[SourceTitle "Acqui Terme"]
[TimeControl "40/5400+30:1800+30"]
[WhiteClock "0:13:04"]
[BlackClock "0:07:35"]

1. d4 {[%emt 0:00:00]} Nf6 {[%emt 0:07:30]} 2. Nf3 {[%emt 0:00:00]} g6 {[%emt 0:01:13]} 3. g3 {[%emt 0:00:15]} Bg7 {[%emt 0:00:02]} 4. Bg2 {[%emt 0:00:10]} O-O {[%emt 0:00:02]} 5. O-O {[%emt 0:00:17]} c5 {[%emt 0:03:35]} 6. d5 {[%emt 0:06:13]} d6 {[%emt 0:01:33]} 7. c4 {[%emt 0:00:34]} Na6 {[%emt 0:06:51]} 8. Nc3 {[%emt 0:00:59]} Nc7 {[%emt 0:00:05]} 9. e4 {[%emt 0:05:26]} a6 {[%emt 0:00:11]} 10. a4 {[%emt 0:00:21]} Rb8 {[%emt 0:00:33]} 11. a5 {[%emt 0:02:04]} e6 {[%emt 0:01:17]} 12. dxe6 {[%emt 0:03:13]} Bxe6 {[%emt 0:05:44]} 13. Qd3 {[%emt 0:04:19]} Ng4 {[%emt 0:04:43]} 14. Na4 {[%emt 0:06:51]} Qe7 {[%emt 0:03:05]} 15. Nb6 {[%emt 0:03:32]} Rbd8 {[%emt 0:04:33]} 16. Qe2 {[%emt 0:04:10]} Ne5 {[%emt 0:02:09]} 17. Ne1 {[%emt 0:06:05]} Nc6 {[%emt 0:00:44]} 18. Nc2 {[%emt 0:01:07]} Rfe8 {[%emt 0:06:10]} 19. Re1 {[%emt 0:01:17]} Na8 {[%emt 0:05:17]} 20. Nd5 {[%emt 0:08:27]} Bxd5 {[%emt 0:02:15]} 21. cxd5 {[%emt 0:00:05]} Nd4 {[%emt 0:00:27]} 22. Nxd4 {[%emt 0:00:34]} Bxd4 {[%emt 0:00:10]} 23. Be3 {[%emt 0:01:16]} Bg7 {[%emt 0:03:51]} 24. Qd2 {[%emt 0:06:02]} Nc7 {[%emt 0:00:18]} 25. Bg5 {[%emt 0:03:29]} Bf6 {[%emt 0:00:05]} 26. Bxf6 {[%emt 0:00:29]} Qxf6 {[%emt 0:00:01]} 27. b4 {[%emt 0:02:12]} cxb4 {[%emt 0:00:30]} 28. Rab1 {[%emt 0:00:15]} Qc3 {[%emt 0:03:36]} 29. Red1 {[%emt 0:06:03]} Nb5 {[%emt 0:00:30]} 30. Rxb4 {[%emt 0:00:30]} Qa3 {[%emt 0:01:15]} 31. Rc4 {[%emt 0:01:00]} Rc8 {[%emt 0:00:51]} 32. Rdc1 {[%emt 0:00:25]} Rxc4 {[%emt 0:00:18]} 33. Rxc4 {[%emt 0:00:07]} Kg7 {[%emt 0:06:41]} 34. f3 {[%emt 0:02:15]} Re7 {[%emt 0:00:33]} 35. Kf2 {[%emt 0:01:40]} f6 {[%emt 0:01:47]} 36. Bh3 {[%emt 0:05:24]} Qb3 {[%emt 0:02:51]} 37. Qc2 {[%emt 0:04:08]} Qa3 {[%emt 0:00:03]} 38. Be6 {[%emt 0:00:48]} Qxa5 {[%emt 0:01:34]} 39. Rc8 {[%emt 0:00:29]} Rc7 {[%emt 0:03:34]} 40. Rg8+ {[%emt 0:02:08]} Kh6 {[%emt 0:30:02]} 41. Qe2 {[%emt 0:30:36]} Rc3 {[%emt 0:04:07]} 42. g4 {[%emt 0:06:44]} Qb6+ {[%emt 0:10:32]} 43. Kg2 {[%emt 0:06:40]} Qd4 {[%emt 0:02:28]} 44. h4 {[%emt 0:00:00]} Rc1 {[%emt 0:00:00]} 45. Kg3 {[%emt 0:00:00]} Nc3 {[%emt 0:00:00]} 46. g5+ {[%emt 0:00:00]} fxg5 {[%emt 0:00:00]} 47. hxg5+ {[%emt 0:00:00]} Kxg5 {[%emt 0:00:00]} 48. f4+ {[%emt 0:00:00]} Kf6 {[%emt 0:00:00]} 49. e5+ {[%emt 0:00:00]} Ke7 {[%emt 0:00:46]} 50. exd6+ {[%emt 0:00:00]} Kxd6 {[%emt 0:00:34]} 51. Qe5+ {[%emt 0:00:00]} Qxe5 {[%emt 0:00:30]} 52. Rd8+ {[%emt 0:00:00]} Kc5 {[%emt 0:02:03]} 53. fxe5 {[%emt 0:00:00]} Kd4 {[%emt 0:01:04]} 54. Bc8 {[%emt 0:00:00]} Kxe5 {[%emt 0:00:31]} 55. Bxb7 {[%emt 0:00:00]} Ne4+ {[%emt 0:00:30]} 56. Kf3 {[%emt 0:00:00]} Rc3+ {[%emt 0:01:07]} 57. Ke2 {[%emt 0:00:00]} Nd6 {[%emt 0:00:37]} 58. Bxa6 {[%emt 0:00:00]} Kxd5 {[%emt 0:00:26]} 59. Rh8 {[%emt 0:00:00]} Rc7 {[%emt 0:00:59]} 60. Kf3 {[%emt 0:00:00]} Ke5 {[%emt 0:00:12]} 61. Kg4 {[%emt 0:00:00]} 0-1

[Event "WSCC 50 Open 2017"]
[Site "?"]
[Date "2017.11.17"]
[Round "10"]
[White "Vasiukov, Evgeni"]
[Black "Shevelev, Arkady"]
[Result "1/2-1/2"]
[ECO "B40"]
[WhiteElo "2404"]
[BlackElo "2280"]
[PlyCount "52"]
[EventDate "2017.??.??"]
[EventType "swiss"]
[EventCountry "ITA"]
[SourceTitle "Acqui Terme"]
[TimeControl "40/5400+30:1800+30"]
[WhiteClock "0:54:58"]
[BlackClock "0:29:09"]

1. e4 {[%emt 0:01:36]} c5 {[%emt 0:00:14]} 2. Nf3 {[%emt 0:01:26]} e6 {[%emt 0:00:25]} 3. Nc3 {[%emt 0:00:21]} Nc6 {[%emt 0:01:44]} 4. Bb5 {[%emt 0:00:41]} Nd4 {[%emt 0:00:26]} 5. O-O {[%emt 0:01:27]} a6 {[%emt 0:00:24]} 6. Bd3 {[%emt 0:00:10]} Nc6 {[%emt 0:03:01]} 7. Re1 {[%emt 0:02:19]} d6 {[%emt 0:00:37]} 8. Bf1 {[%emt 0:00:25]} Nf6 {[%emt 0:02:23]} 9. d4 {[%emt 0:00:42]} cxd4 {[%emt 0:00:29]} 10. Nxd4 {[%emt 0:00:02]} Qc7 {[%emt 0:01:59]} 11. a4 {[%emt 0:06:47]} Be7 {[%emt 0:00:28]} 12. Nb3 {[%emt 0:00:11]} b6 {[%emt 0:03:41]} 13. Qf3 {[%emt 0:00:33]} O-O {[%emt 0:06:20]} 14. Qg3 {[%emt 0:00:05]} Re8 {[%emt 0:01:29]} 15. f4 {[%emt 0:02:21]} Nb4 {[%emt 0:12:53]} 16. Bd3 {[%emt 0:01:45]} e5 {[%emt 0:11:34]} 17. f5 {[%emt 0:00:16]} d5 {[%emt 0:00:44]} 18. Bh6 {[%emt 0:00:47]} g6 {[%emt 0:03:27]} 19. Nxd5 {[%emt 0:07:11]} Nfxd5 {[%emt 0:01:01]} 20. exd5 {[%emt 0:00:02]} Nxd3 {[%emt 0:00:35]} 21. fxg6 {[%emt 0:00:03]} hxg6 {[%emt 0:03:37]} 22. cxd3 {[%emt 0:00:06]} Bb7 {[%emt 0:03:38]} 23. Rac1 {[%emt 0:10:54]} Qd7 {[%emt 0:06:41]} 24. Nd2 {[%emt 0:04:09]} Bxd5 {[%emt 0:03:23]} 25. Nc4 {[%emt 0:00:06]} Bc5+ {[%emt 0:02:38]} 26. Be3 {[%emt 0:03:37]} Bxc4 1/2-1/2

[Event "WSCC 50 Open 2017"]
[Site "?"]
[Date "2017.11.17"]
[Round "10"]
[White "Lisenko, Alexander V"]
[Black "Beltz, Robert"]
[Result "*"]
[ECO "A00"]
[WhiteElo "2372"]
[BlackElo "2158"]
[PlyCount "80"]
[EventDate "2017.??.??"]
[EventType "swiss"]
[EventCountry "ITA"]
[SourceTitle "Acqui Terme"]
[TimeControl "40/5400+30:1800+30"]
[WhiteClock "0:06:47"]
[BlackClock "0:01:38"]

1. g3 {[%emt 0:00:00]} e5 {[%emt 0:00:12]} 2. c4 {[%emt 0:00:00]} d6 {[%emt 0:00:06]} 3. Bg2 {[%emt 0:00:37]} f5 {[%emt 0:00:14]} 4. Nc3 {[%emt 0:00:33]} Nf6 {[%emt 0:00:08]} 5. e3 {[%emt 0:00:12]} Be7 {[%emt 0:00:22]} 6. Nge2 {[%emt 0:00:07]} O-O {[%emt 0:02:48]} 7. O-O {[%emt 0:00:09]} c6 {[%emt 0:00:30]} 8. d3 {[%emt 0:22:06]} Be6 {[%emt 0:02:11]} 9. f4 {[%emt 0:00:19]} Nbd7 {[%emt 0:01:32]} 10. b3 {[%emt 0:00:25]} Qb6 {[%emt 0:09:35]} 11. Qd2 {[%emt 0:09:01]} Rae8 {[%emt 0:02:45]} 12. Bb2 {[%emt 0:05:10]} Ng4 {[%emt 0:10:17]} 13. Nd1 {[%emt 0:02:26]} Bf6 {[%emt 0:01:25]} 14. d4 {[%emt 0:13:25]} exf4 {[%emt 0:03:34]} 15. exf4 {[%emt 0:08:04]} Bf7 {[%emt 0:01:10]} 16. h3 {[%emt 0:01:23]} Nh6 {[%emt 0:02:01]} 17. Bf3 {[%emt 0:07:39]} g6 {[%emt 0:19:13]} 18. Kg2 {[%emt 0:05:45]} Bg7 {[%emt 0:02:00]} 19. Nf2 {[%emt 0:00:46]} Nf6 {[%emt 0:02:43]} 20. Nc3 {[%emt 0:02:31]} d5 {[%emt 0:08:27]} 21. Ba3 {[%emt 0:04:44]} Ne4 {[%emt 0:00:08]} 22. Bxe4 {[%emt 0:00:16]} fxe4 {[%emt 0:02:06]} 23. Bxf8 {[%emt 0:01:47]} Rxf8 {[%emt 0:00:18]} 24. c5 {[%emt 0:00:16]} Qb4 {[%emt 0:08:25]} 25. Ncxe4 {[%emt 0:00:34]} Qxd4 {[%emt 0:00:08]} 26. Qxd4 {[%emt 0:03:43]} Bxd4 {[%emt 0:00:05]} 27. Nd6 {[%emt 0:01:50]} Bxa1 {[%emt 0:03:16]} 28. Rxa1 {[%emt 0:00:06]} b6 {[%emt 0:01:20]} 29. Rc1 {[%emt 0:00:18]} b5 {[%emt 0:01:55]} 30. Nd3 {[%emt 0:01:13]} d4 {[%emt 0:02:21]} 31. Nb4 {[%emt 0:02:39]} Nf5 {[%emt 0:05:04]} 32. Nxf5 {[%emt 0:00:06]} gxf5 {[%emt 0:00:06]} 33. Kf2 {[%emt 0:00:05]} Rc8 {[%emt 0:07:49]} 34. Rd1 {[%emt 0:00:25]} a5 {[%emt 0:00:07]} 35. Nc2 {[%emt 0:00:05]} a4 {[%emt 0:01:04]} 36. Nxd4 {[%emt 0:00:12]} Rd8 {[%emt 0:00:47]} 37. Rd2 {[%emt 0:00:29]} a3 {[%emt 0:01:02]} 38. Ke1 {[%emt 0:01:18]} Re8+ {[%emt 0:01:27]} 39. Re2 {[%emt 0:02:21]} Rxe2+ {[%emt 0:00:05]} 40. Kxe2 {[%emt 0:00:08]} Bd5 {[%emt 0:30:06]} *

[Event "WSCC 50 Open 2017"]
[Site "?"]
[Date "2017.11.17"]
[Round "10"]
[White "Mantovani, Renzo"]
[Black "Schnelzer, Reinhold"]
[Result "*"]
[ECO "A37"]
[WhiteElo "2307"]
[BlackElo "2208"]
[PlyCount "170"]
[EventDate "2017.??.??"]
[EventType "swiss"]
[EventCountry "ITA"]
[SourceTitle "Acqui Terme"]
[TimeControl "40/5400+30:1800+30"]
[WhiteClock "0:02:18"]
[BlackClock "0:17:35"]

1. c4 {[%emt 0:00:00]} c5 {[%emt 0:00:43]} 2. Nc3 {[%emt 0:00:09]} Nc6 {[%emt 0:00:08]} 3. Nf3 {[%emt 0:00:49]} g6 {[%emt 0:00:46]} 4. g3 {[%emt 0:02:20]} Bg7 {[%emt 0:00:17]} 5. Bg2 {[%emt 0:00:09]} e6 {[%emt 0:01:00]} 6. d3 {[%emt 0:03:47]} Nge7 {[%emt 0:00:39]} 7. Bd2 {[%emt 0:05:36]} O-O {[%emt 0:06:00]} 8. Rb1 {[%emt 0:06:29]} h6 {[%emt 0:13:22]} 9. a3 {[%emt 0:01:47]} d6 {[%emt 0:08:57]} 10. b4 {[%emt 0:01:10]} e5 {[%emt 0:07:30]} 11. O-O {[%emt 0:00:57]} Rb8 {[%emt 0:02:14]} 12. Ne1 {[%emt 0:10:19]} b6 {[%emt 0:06:55]} 13. Nc2 {[%emt 0:03:23]} Be6 {[%emt 0:03:29]} 14. Ne3 {[%emt 0:02:18]} Qd7 {[%emt 0:02:53]} 15. Ned5 {[%emt 0:00:35]} f5 {[%emt 0:03:03]} 16. b5 {[%emt 0:11:16]} Nd8 {[%emt 0:03:17]} 17. a4 {[%emt 0:00:26]} f4 {[%emt 0:03:05]} 18. Nxe7+ {[%emt 0:07:14]} Qxe7 {[%emt 0:00:08]} 19. Nd5 {[%emt 0:00:06]} Bxd5 {[%emt 0:02:00]} 20. Bxd5+ {[%emt 0:00:16]} Kh7 {[%emt 0:01:01]} 21. e3 {[%emt 0:08:28]} fxg3 {[%emt 0:03:08]} 22. hxg3 {[%emt 0:04:11]} Ne6 {[%emt 0:04:14]} 23. Qg4 {[%emt 0:02:16]} Rf6 {[%emt 0:01:09]} 24. f4 {[%emt 0:04:27]} Rbf8 {[%emt 0:02:36]} 25. Bc3 {[%emt 0:12:49]} Nc7 {[%emt 0:00:40]} 26. Be4 {[%emt 0:00:16]} Qe6 {[%emt 0:01:03]} 27. Qh4 {[%emt 0:02:41]} R6f7 {[%emt 0:01:52]} 28. Qh1 {[%emt 0:05:25]} exf4 {[%emt 0:07:03]} 29. Bxg7 {[%emt 0:00:06]} Kxg7 {[%emt 0:00:20]} 30. gxf4 {[%emt 0:00:28]} Rd8 {[%emt 0:02:19]} 31. Qg2 {[%emt 0:00:54]} Kh7 {[%emt 0:01:42]} 32. Rf3 {[%emt 0:00:28]} d5 {[%emt 0:00:33]} 33. cxd5 {[%emt 0:00:17]} Nxd5 {[%emt 0:00:07]} 34. Rg3 {[%emt 0:00:19]} Ne7 {[%emt 0:00:22]} 35. Kh2 {[%emt 0:03:05]} Nf5 {[%emt 0:01:18]} 36. Bxf5 {[%emt 0:00:34]} Rxf5 {[%emt 0:01:16]} 37. Qe4 {[%emt 0:00:23]} Qa2+ {[%emt 0:02:43]} 38. Rg2 {[%emt 0:00:11]} Rh5+ {[%emt 0:01:30]} 39. Kg3 {[%emt 0:00:01]} Qf7 {[%emt 0:00:17]} 40. Rbg1 {[%emt 0:01:12]} Rhd5 {[%emt 0:34:22]} 41. Kf3 {[%emt 0:30:52]} R5d6 {[%emt 0:00:58]} 42. Rxg6 {[%emt 0:01:48]} Rxg6 {[%emt 0:00:00]} 43. Rxg6 {[%emt 0:00:00]} Qxg6 {[%emt 0:00:00]} 44. Qe7+ {[%emt 0:00:00]} Qg7 {[%emt 0:00:00]} 45. Qxd8 {[%emt 0:00:00]} Qf7 {[%emt 0:00:00]} 46. e4 {[%emt 0:00:00]} c4 {[%emt 0:00:00]} 47. dxc4 {[%emt 0:00:00]} Qxc4 {[%emt 0:00:00]} 48. Qd7+ {[%emt 0:00:00]} Kh8 {[%emt 0:00:00]} 49. Qe8+ {[%emt 0:00:00]} Kh7 {[%emt 0:00:00]} 50. Kg4 {[%emt 0:00:14]} Qf1 {[%emt 0:00:00]} 51. Qf7+ {[%emt 0:02:25]} Kh8 {[%emt 0:00:00]} 52. Qf6+ {[%emt 0:00:48]} Kh7 {[%emt 0:00:00]} 53. Qe7+ {[%emt 0:00:02]} Kg8 {[%emt 0:00:00]} 54. Qd8+ {[%emt 0:00:06]} Kg7 {[%emt 0:00:00]} 55. Qc7+ {[%emt 0:00:04]} Kg8 {[%emt 0:00:00]} 56. Qb8+ {[%emt 0:00:11]} Kg7 {[%emt 0:00:00]} 57. Qxa7+ {[%emt 0:00:04]} Kg8 {[%emt 0:00:00]} 58. Qb8+ {[%emt 0:01:36]} Kg7 {[%emt 0:00:00]} 59. Qc7+ {[%emt 0:00:22]} Kg8 {[%emt 0:00:00]} 60. Kf5 {[%emt 0:02:11]} Qh3+ {[%emt 0:00:00]} 61. Ke5 {[%emt 0:00:48]} Qh5+ {[%emt 0:00:00]} 62. Ke6 {[%emt 0:00:21]} Qg6+ {[%emt 0:00:00]} 63. Kd5 {[%emt 0:00:20]} h5 {[%emt 0:00:00]} 64. Qd8+ {[%emt 0:00:31]} Kf7 {[%emt 0:00:00]} 65. Qd7+ {[%emt 0:00:10]} Kf8 {[%emt 0:00:00]} 66. f5 {[%emt 0:00:34]} Qg4 {[%emt 0:00:00]} 67. Qd8+ {[%emt 0:00:35]} Kf7 {[%emt 0:00:00]} 68. Qc7+ {[%emt 0:00:04]} Kf8 {[%emt 0:00:00]} 69. Qb8+ {[%emt 0:00:38]} Kf7 {[%emt 0:00:00]} 70. Qb7+ {[%emt 0:00:02]} Kf8 {[%emt 0:00:00]} 71. Ke6 {[%emt 0:00:18]} Qg8+ {[%emt 0:00:00]} 72. Kf6 {[%emt 0:00:35]} Qh8+ {[%emt 0:00:00]} 73. Kg6 {[%emt 0:00:18]} Qg8+ {[%emt 0:00:00]} 74. Kxh5 {[%emt 0:00:15]} Qh8+ {[%emt 0:00:00]} 75. Kg5 {[%emt 0:01:18]} Qg8+ {[%emt 0:00:04]} 76. Kf4 {[%emt 0:00:57]} Qa2 {[%emt 0:01:39]} 77. Qc8+ {[%emt 0:00:13]} Kg7 {[%emt 0:00:14]} 78. Qd7+ {[%emt 0:00:10]} Kh8 {[%emt 0:00:13]} 79. Ke5 {[%emt 0:00:48]} Qh2+ {[%emt 0:01:27]} 80. Ke6 {[%emt 0:00:33]} Qh1 {[%emt 0:00:39]} 81. e5 {[%emt 0:00:33]} Qh3 {[%emt 0:00:52]} 82. Ke7 {[%emt 0:00:56]} Qh4+ {[%emt 0:00:51]} 83. f6 {[%emt 0:00:11]} Qh7+ {[%emt 0:00:41]} 84. Kd8 {[%emt 0:00:15]} Qf7 {[%emt 0:01:16]} 85. Qe8+ {[%emt 0:00:29]} Qf8 {Qd7 Qb4 Ke7} *

[Event "WSCC 50 Open 2017"]
[Site "?"]
[Date "2017.11.17"]
[Round "10"]
[White "Kierzek, Matthias"]
[Black "Pritchett, Craig W"]
[Result "*"]
[ECO "A37"]
[WhiteElo "2252"]
[BlackElo "2280"]
[PlyCount "79"]
[EventDate "2017.??.??"]
[EventType "swiss"]
[EventCountry "ITA"]
[SourceTitle "Acqui Terme"]
[TimeControl "40/5400+30:1800+30"]
[WhiteClock "0:02:23"]
[BlackClock "0:08:21"]

1. c4 {[%emt 0:00:00]} c5 {[%emt 0:00:43]} 2. Nc3 {[%emt 0:00:09]} Nc6 {[%emt 0:00:08]} 3. Nf3 {[%emt 0:00:49]} g6 {[%emt 0:00:46]} 4. g3 {[%emt 0:02:20]} Bg7 {[%emt 0:00:17]} 5. Bg2 {[%emt 0:00:09]} e6 {[%emt 0:01:00]} 6. d3 {[%emt 0:03:47]} Nge7 {[%emt 0:00:39]} 7. Bd2 {[%emt 0:05:36]} O-O {[%emt 0:06:00]} 8. Rb1 {[%emt 0:06:29]} h6 {[%emt 0:13:22]} 9. a3 {[%emt 0:01:47]} d6 {[%emt 0:08:57]} 10. b4 {[%emt 0:01:10]} e5 {[%emt 0:07:30]} 11. O-O {[%emt 0:00:57]} Rb8 {[%emt 0:02:14]} 12. Ne1 {[%emt 0:10:19]} b6 {[%emt 0:06:55]} 13. Nc2 {[%emt 0:03:23]} Be6 {[%emt 0:03:29]} 14. Ne3 {[%emt 0:02:18]} Qd7 {[%emt 0:02:53]} 15. Ned5 {[%emt 0:00:35]} f5 {[%emt 0:03:03]} 16. b5 {[%emt 0:11:16]} Nd8 {[%emt 0:03:17]} 17. a4 {[%emt 0:00:26]} f4 {[%emt 0:03:05]} 18. Nxe7+ {[%emt 0:07:14]} Qxe7 {[%emt 0:00:08]} 19. Nd5 {[%emt 0:00:06]} Bxd5 {[%emt 0:02:00]} 20. Bxd5+ {[%emt 0:00:16]} Kh7 {[%emt 0:01:01]} 21. e3 {[%emt 0:08:28]} fxg3 {[%emt 0:03:08]} 22. hxg3 {[%emt 0:04:11]} Ne6 {[%emt 0:04:14]} 23. Qg4 {[%emt 0:02:16]} Rf6 {[%emt 0:01:09]} 24. f4 {[%emt 0:04:27]} Rbf8 {[%emt 0:02:36]} 25. Bc3 {[%emt 0:12:49]} Nc7 {[%emt 0:00:40]} 26. Be4 {[%emt 0:00:16]} Qe6 {[%emt 0:01:03]} 27. Qh4 {[%emt 0:02:41]} R6f7 {[%emt 0:01:52]} 28. Qh1 {[%emt 0:05:25]} exf4 {[%emt 0:07:03]} 29. Bxg7 {[%emt 0:00:06]} Kxg7 {[%emt 0:00:20]} 30. gxf4 {[%emt 0:00:28]} Rd8 {[%emt 0:02:19]} 31. Qg2 {[%emt 0:00:54]} Kh7 {[%emt 0:01:42]} 32. Rf3 {[%emt 0:00:28]} d5 {[%emt 0:00:33]} 33. cxd5 {[%emt 0:00:17]} Nxd5 {[%emt 0:00:07]} 34. Rg3 {[%emt 0:00:19]} Ne7 {[%emt 0:00:22]} 35. Kh2 {[%emt 0:03:05]} Nf5 {[%emt 0:01:18]} 36. Bxf5 {[%emt 0:00:34]} Rxf5 {[%emt 0:01:16]} 37. Qe4 {[%emt 0:00:23]} Qa2+ {[%emt 0:02:43]} 38. Rg2 {[%emt 0:00:11]} Rh5+ {[%emt 0:01:30]} 39. Kg3 {[%emt 0:00:01]} Qf7 {[%emt 0:00:17]} 40. Rbg1 {[%emt 0:01:12]} *

[Event "WSCC 50 Open 2017"]
[Site "?"]
[Date "2017.11.17"]
[Round "10"]
[White "Frick, Christoph"]
[Black "Vogt, Lothar"]
[Result "1-0"]
[ECO "C04"]
[WhiteElo "2230"]
[BlackElo "2398"]
[PlyCount "53"]
[EventDate "2017.??.??"]
[EventType "swiss"]
[EventCountry "ITA"]
[SourceTitle "Acqui Terme"]
[TimeControl "40/5400+30:1800+30"]
[WhiteClock "0:17:41"]
[BlackClock "0:01:08"]

1. e4 {[%emt 0:00:00]} Nc6 {[%emt 0:00:10]} 2. Nf3 {[%emt 0:00:00]} e6 {[%emt 0:00:16]} 3. d4 {[%emt 0:00:17]} d5 {[%emt 0:00:07]} 4. Nbd2 {[%emt 0:05:11]} Nf6 {[%emt 0:02:00]} 5. e5 {[%emt 0:00:15]} Nd7 {[%emt 0:01:42]} 6. Be2 {[%emt 0:00:24]} f6 {[%emt 0:00:22]} 7. exf6 {[%emt 0:00:14]} Qxf6 {[%emt 0:01:29]} 8. Nf1 {[%emt 0:02:15]} Bd6 {[%emt 0:14:02]} 9. Ne3 {[%emt 0:02:14]} O-O {[%emt 0:01:33]} 10. O-O {[%emt 0:06:57]} Qg6 {[%emt 0:07:09]} 11. g3 {[%emt 0:05:08]} e5 {[%emt 0:05:58]} 12. Nxd5 {[%emt 0:05:20]} exd4 {[%emt 0:14:00]} 13. Nxd4 {[%emt 0:05:29]} Nxd4 {[%emt 0:10:41]} 14. Qxd4 {[%emt 0:00:14]} Nc5 {[%emt 0:13:27]} 15. Bf4 {[%emt 0:31:43]} Qxc2 {[%emt 0:18:59]} 16. Bc4 {[%emt 0:04:51]} Kh8 {[%emt 0:00:48]} 17. Nxc7 {[%emt 0:02:15]} Bxf4 {[%emt 0:03:23]} 18. Qxc5 {[%emt 0:00:39]} Bh3 {[%emt 0:01:08]} 19. Nxa8 {[%emt 0:00:16]} Rxa8 {[%emt 0:00:39]} 20. gxf4 {[%emt 0:05:30]} h6 {[%emt 0:01:11]} 21. Qh5 {[%emt 0:00:38]} Bxf1 {[%emt 0:00:35]} 22. Bxf1 {[%emt 0:00:06]} Rf8 {[%emt 0:00:47]} 23. Qe5 {[%emt 0:02:01]} Qg6+ {[%emt 0:00:56]} 24. Bg2 {[%emt 0:00:29]} Re8 {[%emt 0:00:25]} 25. Qc3 {[%emt 0:01:06]} Qf5 {[%emt 0:00:20]} 26. Re1 {[%emt 0:00:31]} Rc8 {[%emt 0:00:15]} 27. Bh3 {[%emt 0:01:46]} 1-0

[Event "WSCC 50 Open 2017"]
[Site "?"]
[Date "2017.11.18"]
[Round "11"]
[White "Buchal, Stephan"]
[Black "Contin, Daniel"]
[Result "1/2-1/2"]
[ECO "C00"]
[WhiteElo "2347"]
[BlackElo "2272"]
[PlyCount "29"]
[EventDate "2017.??.??"]
[EventType "swiss"]
[EventCountry "ITA"]
[SourceTitle "Acqui Terme"]
[TimeControl "40/5400+30:1800+30"]
[WhiteClock "0:24:21"]
[BlackClock "0:48:37"]

1. e4 {[%emt 0:00:00]} e6 {[%emt 0:01:30]} 2. d3 {[%emt 0:00:23]} c5 {[%emt 0:00:23]} 3. Nf3 {[%emt 0:00:28]} Nc6 {[%emt 0:00:28]} 4. g3 {[%emt 0:00:31]} d6 {[%emt 0:01:12]} 5. Bg2 {[%emt 0:00:29]} g6 {[%emt 0:00:13]} 6. O-O {[%emt 0:03:13]} Bg7 {[%emt 0:00:08]} 7. c3 {[%emt 0:00:52]} e5 {[%emt 0:01:25]} 8. Na3 {[%emt 0:11:16]} Nge7 {[%emt 0:00:59]} 9. d4 {[%emt 0:11:51]} exd4 {[%emt 0:03:37]} 10. cxd4 {[%emt 0:01:09]} Bg4 {[%emt 0:00:29]} 11. dxc5 {[%emt 0:08:30]} dxc5 {[%emt 0:02:27]} 12. Qb3 {[%emt 0:05:49]} O-O {[%emt 0:20:43]} 13. Qxb7 {[%emt 0:15:09]} Qd3 {[%emt 0:12:13]} 14. Qb3 {[%emt 0:09:33]} Rfd8 {[%emt 0:03:06]} 15. Be3 {[%emt 0:03:56]} 1/2-1/2

[Event "WSCC 50 Open 2017"]
[Site "?"]
[Date "2017.11.18"]
[Round "11"]
[White "Jhunjhnuwala, Krishan"]
[Black "Mannion, Stephen R"]
[Result "0-1"]
[ECO "C24"]
[WhiteElo "2340"]
[BlackElo "2294"]
[PlyCount "84"]
[EventDate "2017.??.??"]
[EventType "swiss"]
[EventCountry "ITA"]
[SourceTitle "Acqui Terme"]
[TimeControl "40/5400+30:1800+30"]
[WhiteClock "0:03:02"]
[BlackClock "0:02:12"]

1. e4 {[%emt 0:00:00]} e5 {[%emt 0:00:06]} 2. Bc4 {[%emt 0:00:48]} Nf6 {[%emt 0:00:38]} 3. d3 {[%emt 0:00:14]} Nc6 {[%emt 0:00:19]} 4. Nc3 {[%emt 0:00:41]} Na5 {[%emt 0:01:01]} 5. Bb3 {[%emt 0:01:34]} c6 {[%emt 0:07:40]} 6. f4 {[%emt 0:03:29]} Nxb3 {[%emt 0:06:32]} 7. axb3 {[%emt 0:00:20]} exf4 {[%emt 0:00:27]} 8. Bxf4 {[%emt 0:08:37]} d5 {[%emt 0:01:12]} 9. e5 {[%emt 0:03:32]} Bg4 {[%emt 0:01:22]} 10. Nf3 {[%emt 0:01:40]} Nd7 {[%emt 0:00:12]} 11. d4 {[%emt 0:05:45]} Be7 {[%emt 0:00:42]} 12. O-O {[%emt 0:00:16]} Nf8 {[%emt 0:07:59]} 13. h3 {[%emt 0:04:12]} Bh5 {[%emt 0:00:20]} 14. Qd2 {[%emt 0:03:48]} Ne6 {[%emt 0:03:03]} 15. Be3 {[%emt 0:00:10]} O-O {[%emt 0:00:26]} 16. Ne2 {[%emt 0:02:15]} f5 {[%emt 0:08:48]} 17. exf6 {[%emt 0:02:33]} Bxf6 {[%emt 0:00:11]} 18. Rae1 {[%emt 0:05:22]} Bxf3 {[%emt 0:18:17]} 19. Rxf3 {[%emt 0:00:28]} Ng5 {[%emt 0:06:34]} 20. Bxg5 {[%emt 0:05:33]} Bxg5 {[%emt 0:01:11]} 21. Rxf8+ {[%emt 0:01:32]} Kxf8 {[%emt 0:00:02]} 22. Qd3 {[%emt 0:02:20]} Kg8 {[%emt 0:00:35]} 23. c4 {[%emt 0:06:39]} Qe7 {[%emt 0:01:45]} 24. Rd1 {[%emt 0:05:11]} Rd8 {[%emt 0:06:19]} 25. Kh1 {[%emt 0:01:05]} Bf6 {[%emt 0:02:33]} 26. Qf3 {[%emt 0:02:32]} Qf7 {[%emt 0:02:32]} 27. Qd3 {[%emt 0:04:21]} dxc4 {[%emt 0:02:03]} 28. bxc4 {[%emt 0:00:23]} c5 {[%emt 0:00:23]} 29. d5 {[%emt 0:02:54]} Bxb2 {[%emt 0:00:17]} 30. Ng3 {[%emt 0:01:01]} g6 {[%emt 0:03:18]} 31. Ne4 {[%emt 0:00:49]} Be5 {[%emt 0:11:00]} 32. Nxc5 {[%emt 0:03:55]} Qf4 {[%emt 0:02:35]} 33. g3 {[%emt 0:00:52]} Qf2 {[%emt 0:00:07]} 34. Ne4 {[%emt 0:01:59]} Qf5 {[%emt 0:02:07]} 35. Kg2 {[%emt 0:01:15]} Kg7 {[%emt 0:01:37]} 36. Rf1 {[%emt 0:02:04]} Qd7 {[%emt 0:01:51]} 37. Nc5 {[%emt 0:04:21]} Qe7 {[%emt 0:01:33]} 38. Ne6+ {[%emt 0:00:29]} Qxe6 {[%emt 0:00:01]} 39. dxe6 {[%emt 0:00:08]} Rxd3 {[%emt 0:00:02]} 40. e7 {[%emt 0:00:11]} Rxg3+ {[%emt 0:30:13]} 41. Kf2 {[%emt 0:42:21]} Kf7 {[%emt 0:00:43]} 42. Re1 {[%emt 0:00:19]} Rg5 {[%emt 0:00:42]} 0-1